lending/lending_fUSD_20241212
["ID","MTS","AMOUNT","RATE_DAILY","PERIOD"]
[345109771,1734022250146,-842.12,0.00021095,2]
[345109772,1734022250157,-886.16,0.00021095,2]
[345109773,1734022250172,-500.0,0.00021095,2]
[345109774,1734022250181,-500.0,0.00021095,2]
[345109775,1734022250190,-584.31,0.00021095,2]
[345109776,1734022250199,-633.15,0.00021095,2]
[345109777,1734022250208,-500.0,0.00021095,2]
[345109778,1734022250218,-500.0,0.00021095,2]
[345109779,1734022250233,-1844.4,0.00021095,2]
[345109780,1734022250242,-809.03,0.00021095,2]
[345109781,1734022250253,-879.44,0.00021095,2]
[345109782,1734022250262,-844.36,0.00021095,2]
[345109783,1734022250272,-500.0,0.00021095,2]
[345109784,1734022250282,-500.0,0.00021095,2]
[345109785,1734022250291,-500.0,0.00021095,2]
[345109786,1734022250300,-356.69411057,0.00021095,2]
[345109787,1734022250309,-910.32,0.00021095,2]
[345109788,1734022250318,-500.0,0.00021095,2]
[345109789,1734022250328,-500.0,0.00021095,2]
[345109790,1734022250338,-195.33283665,0.00021095,2]
[345109791,1734022250348,-1600.0,0.00021141,2]
[345109792,1734022250357,-887.97,0.00021147,2]
[345109793,1734022250366,-500.0,0.00021147,2]
[345109794,1734022250375,-500.0,0.00021147,2]
[345109795,1734022250384,-508.62,0.00021147,2]
[345109796,1734022250393,-500.0,0.00021147,2]
[345109797,1734022250403,-692.05,0.00021147,2]
[345109798,1734022250412,-500.0,0.00021147,2]
[345109799,1734022250423,-722.51,0.00021147,2]
[345109800,1734022250433,-500.0,0.00021147,2]
[345109801,1734022250443,-698.19,0.00021147,2]
[345109802,1734022250453,-500.0,0.00021147,2]
[345109803,1734022250464,-2733.56,0.00021147,2]
[345109804,1734022250476,-1629.13,0.00021147,2]
[345109805,1734022250486,-500.0,0.00021147,2]
[345109806,1734022250495,-500.0,0.00021147,2]
[345109807,1734022250505,-500.0,0.00021147,2]
[345109808,1734022250514,-500.0,0.00021147,2]
[345109809,1734022250524,-507.60943775,0.00021147,2]
[345109810,1734022250534,-500.0,0.00021147,2]
[345109811,1734022250545,-578.64,0.00021147,2]
[345109812,1734022250555,-500.0,0.00021147,2]
[345109813,1734022250564,-500.0,0.00021147,2]
[345109814,1734022250574,-502.38640522,0.00021147,2]
[345109815,1734022250583,-649.96,0.00021147,2]
[345109816,1734022250592,-1232.20944006,0.00021166,2]
[345109817,1734022250602,-606.0,0.00021268,2]
[345109818,1734022250611,-684.68,0.00021272,30]
[345109819,1734022250621,-500.0,0.00021369,2]
[345109820,1734022250630,-500.0,0.00021369,2]
[345109821,1734022250639,-500.0,0.00021369,2]
[345109822,1734022250649,-500.0,0.00021369,2]
[345109823,1734022250658,-1146.74,0.00021369,2]
[345109824,1734022250668,-500.0,0.00021369,2]
[345109825,1734022250679,-782.13,0.00021369,2]
[345109826,1734022250689,-500.53,0.00021369,2]
[345109827,1734022250703,-500.0,0.00021369,2]
[345109828,1734022250712,-1673.74,0.00021369,2]
[345109829,1734022250722,-500.0,0.00021369,2]
[345109830,1734022250731,-500.0,0.00021369,2]
[345109831,1734022250742,-610.81,0.00021369,2]
[345109832,1734022250751,-500.0,0.00021369,2]
[345109833,1734022250760,-500.0,0.00021369,2]
[345109834,1734022250770,-500.0,0.00021369,2]
[345109835,1734022250779,-500.0,0.00021369,2]
[345109836,1734022250789,-500.0,0.00021369,2]
[345109837,1734022250798,-1221.99,0.00021369,2]
[345109838,1734022250807,-565.6,0.00021369,2]
[345109839,1734022250816,-500.0,0.00021369,2]
[345109840,1734022250825,-858.22,0.00021369,2]
[345109841,1734022250834,-1890.78,0.00021369,2]
[345109842,1734022250843,-500.0,0.00021369,2]
[345109843,1734022250852,-500.0,0.00021369,2]
[345109844,1734022250862,-1315.92,0.00021369,2]
[345109845,1734022250873,-500.0,0.00021369,2]
[345109846,1734022250882,-500.0,0.00021369,2]
[345109847,1734022250891,-1416.4,0.00021369,2]
[345109848,1734022250906,-500.0,0.00021369,2]
[345109849,1734022250915,-500.0,0.00021369,2]
[345109850,1734022250925,-500.0,0.00021369,2]
[345109851,1734022250935,-860.5,0.00021369,2]
[345109852,1734022250945,-500.0,0.00021369,2]
[345109853,1734022250954,-500.0,0.00021369,2]
[345109854,1734022250964,-500.0,0.00021369,2]
[345109855,1734022250974,-500.0,0.00021369,2]
[345109856,1734022250983,-500.0,0.00021369,2]
[345109857,1734022250992,-555.05,0.00021369,2]
[345109858,1734022251002,-500.0,0.00021369,2]
[345109859,1734022251011,-520.46382181,0.00021369,2]
[345109860,1734022251021,-500.0,0.00021369,2]
[345109861,1734022251031,-500.0,0.00021369,2]
[345109862,1734022251041,-500.0,0.00021369,2]
[345109863,1734022251050,-842.12,0.00021369,2]
[345109864,1734022251060,-886.16,0.00021369,2]
[345109865,1734022251069,-500.0,0.00021369,2]
[345109866,1734022251079,-500.0,0.00021369,2]
[345109867,1734022251088,-584.31,0.00021369,2]
[345109868,1734022251098,-633.15,0.00021369,2]
[345109869,1734022251107,-500.0,0.00021369,2]
[345109870,1734022251116,-500.0,0.00021369,2]
[345109871,1734022251126,-1844.4,0.00021369,2]
[345109872,1734022251136,-809.03,0.00021369,2]
[345109873,1734022251146,-879.44,0.00021369,2]
[345109874,1734022251155,-844.36,0.00021369,2]
[345109875,1734022251165,-500.0,0.00021369,2]
[345109876,1734022251175,-500.0,0.00021369,2]
[345109877,1734022251185,-424.96704993,0.00021369,2]
[345109878,1734022251194,-910.32,0.00021369,2]
[345109879,1734022251204,-500.0,0.00021369,2]
[345109880,1734022251214,-500.0,0.00021369,2]
[345109881,1734022251224,-5012.45,0.0002137,2]
[345109882,1734022251234,-887.97,0.00021421,2]
[345109883,1734022251244,-500.0,0.00021421,2]
[345109884,1734022251253,-500.0,0.00021421,2]
[345109885,1734022251263,-508.62,0.00021421,2]
[345109886,1734022251272,-500.0,0.00021421,2]
[345109887,1734022251282,-692.05,0.00021421,2]
[345109888,1734022251291,-500.0,0.00021421,2]
[345109889,1734022251301,-722.51,0.00021421,2]
[345109890,1734022251310,-500.0,0.00021421,2]
[345109891,1734022251319,-698.19,0.00021421,2]
[345109892,1734022251329,-500.0,0.00021421,2]
[345109893,1734022251338,-2733.56,0.00021421,2]
[345109894,1734022251347,-1629.13,0.00021421,2]
[345109895,1734022251356,-500.0,0.00021421,2]
[345109896,1734022251366,-423.12779947,0.00021421,2]
[345109897,1734022251375,-500.0,0.00021421,2]
[345109898,1734022251385,-500.0,0.00021421,2]
[345109899,1734022251397,-500.0,0.00021421,2]
[345109900,1734022251407,-578.64,0.00021421,2]
[345109901,1734022251417,-500.0,0.00021421,2]
[345109902,1734022251426,-500.0,0.00021421,2]
[345109903,1734022251435,-649.96,0.00021421,2]
[345109904,1734022251445,-606.0,0.00021487,2]
[345109905,1734022251454,-33429.34029959,0.00021593,2]
[345109906,1734022251463,-1232.20944006,0.00021616,2]
[345109907,1734022251472,-500.0,0.00021643,2]
[345109908,1734022251481,-500.0,0.00021643,2]
[345109909,1734022251491,-500.0,0.00021643,2]
[345109910,1734022251501,-500.0,0.00021643,2]
[345109911,1734022251510,-1146.74,0.00021643,2]
[345109912,1734022251519,-500.0,0.00021643,2]
[345109913,1734022251528,-782.13,0.00021643,2]
[345109914,1734022251537,-500.53,0.00021643,2]
[345109915,1734022251548,-584.17224697,0.00021643,2]
[345109916,1734022251558,-1673.74,0.00021643,2]
[345109917,1734022251567,-500.0,0.00021643,2]
[345109918,1734022251578,-610.81,0.00021643,2]
[345109919,1734022251587,-500.0,0.00021643,2]
[345109920,1734022251597,-500.0,0.00021643,2]
[345109921,1734022251606,-500.0,0.00021643,2]
[345109922,1734022251615,-514.69806442,0.00021643,2]
[345109923,1734022251624,-500.0,0.00021643,2]
[345109924,1734022251634,-1221.99,0.00021643,2]
[345109925,1734022251643,-565.6,0.00021643,2]
[345109926,1734022251654,-500.0,0.00021643,2]
[345109927,1734022251663,-858.22,0.00021643,2]
[345109928,1734022251675,-1890.78,0.00021643,2]
[345109929,1734022251685,-500.0,0.00021643,2]
[345109930,1734022251695,-1315.92,0.00021643,2]
[345109931,1734022251709,-500.0,0.00021643,2]
[345109932,1734022251719,-500.0,0.00021643,2]
[345109933,1734022251728,-1416.4,0.00021643,2]
[345109934,1734022251738,-500.0,0.00021643,2]
[345109935,1734022251747,-500.0,0.00021643,2]
[345109936,1734022251757,-500.0,0.00021643,2]
[345109937,1734022251766,-860.5,0.00021643,2]
[345109938,1734022251919,-500.0,0.00021643,2]
[345109939,1734022251929,-500.0,0.00021643,2]
[345109940,1734022251938,-500.0,0.00021643,2]
[345109941,1734022251948,-500.0,0.00021643,2]
[345109942,1734022251958,-555.05,0.00021643,2]
[345109943,1734022251967,-500.0,0.00021643,2]
[345109944,1734022251976,-500.0,0.00021643,2]
[345109945,1734022251986,-500.0,0.00021643,2]
[345109946,1734022251995,-500.0,0.00021643,2]
[345109947,1734022252004,-842.12,0.00021643,2]
[345109948,1734022252014,-886.16,0.00021643,2]
[345109949,1734022252023,-500.0,0.00021643,2]
[345109950,1734022252032,-500.0,0.00021643,2]
[345109951,1734022252042,-584.31,0.00021643,2]
[345109952,1734022252051,-633.15,0.00021643,2]
[345109953,1734022252060,-500.0,0.00021643,2]
[345109954,1734022252069,-500.0,0.00021643,2]
[345109955,1734022252078,-1844.4,0.00021643,2]
[345109956,1734022252088,-809.03,0.00021643,2]
[345109957,1734022252097,-879.44,0.00021643,2]
[345109958,1734022252106,-844.36,0.00021643,2]
[345109959,1734022252116,-278.34905829,0.00021643,2]
[345109960,1734022252125,-910.32,0.00021643,2]
[345109961,1734022252135,-500.0,0.00021643,2]
[345109962,1734022252144,-500.0,0.00021643,2]
[345109963,1734022252154,-4000.0,0.00021645,2]
[345109964,1734022252163,-887.97,0.00021695,2]
[345109965,1734022252173,-500.0,0.00021695,2]
[345109966,1734022252182,-255.92919792,0.00021695,2]
[345109967,1734022252192,-508.62,0.00021695,2]
[345109968,1734022252201,-500.0,0.00021695,2]
[345109969,1734022252211,-692.05,0.00021695,2]
[345109970,1734022252220,-500.0,0.00021695,2]
[345109971,1734022252229,-722.51,0.00021695,2]
[345109972,1734022252238,-500.0,0.00021695,2]
[345109973,1734022252247,-698.19,0.00021695,2]
[345109974,1734022252259,-500.0,0.00021695,2]
[345109975,1734022252267,-2733.56,0.00021695,2]
[345109976,1734022252276,-1629.13,0.00021695,2]
[345109977,1734022252286,-500.0,0.00021695,2]
[345109978,1734022252295,-500.0,0.00021695,2]
[345109979,1734022252305,-500.0,0.00021695,2]
[345109980,1734022252315,-500.0,0.00021695,2]
[345109981,1734022252325,-578.64,0.00021695,2]
[345109982,1734022252335,-500.0,0.00021695,2]
[345109983,1734022252347,-502.12849668,0.00021695,2]
[345109984,1734022252356,-649.96,0.00021695,2]
[345109985,1734022252365,-606.0,0.00021706,2]
[345109986,1734022252375,-150748.88853897,0.00021756,2]
[345109987,1734022252384,-1975.126,0.00021784,2]
[345109988,1734022252394,-177.898,0.00021784,2]
[345109989,1734022252404,-156.73,0.00021833,2]
[345109990,1734022252414,-487.26592844,0.00021917,2]
[345109991,1734022252423,-500.0,0.00021917,2]
[345109992,1734022252433,-500.0,0.00021917,2]
[345109993,1734022252444,-500.0,0.00021917,2]
[345109994,1734022252459,-1146.74,0.00021917,2]
[345109995,1734022252468,-500.0,0.00021917,2]
[345109996,1734022252477,-782.13,0.00021917,2]
[345109997,1734022252486,-500.53,0.00021917,2]
[345109998,1734022252496,-1673.74,0.00021917,2]
[345109999,1734022252505,-500.0,0.00021917,2]
[345110000,1734022252515,-610.81,0.00021917,2]
[345110001,1734022252526,-500.0,0.00021917,2]
[345110002,1734022252536,-552.46392441,0.00021917,2]
[345110003,1734022252546,-500.0,0.00021917,2]
[345110004,1734022252555,-500.0,0.00021917,2]
[345110005,1734022252565,-1221.99,0.00021917,2]
[345110006,1734022252574,-565.6,0.00021917,2]
[345110007,1734022252584,-500.0,0.00021917,2]
[345110008,1734022252595,-858.22,0.00021917,2]
[345110009,1734022252605,-1890.78,0.00021917,2]
[345110010,1734022252615,-500.0,0.00021917,2]
[345110011,1734022252625,-1315.92,0.00021917,2]
[345110012,1734022252635,-500.0,0.00021917,2]
[345110013,1734022252645,-500.0,0.00021917,2]
[345110014,1734022252655,-1416.4,0.00021917,2]
[345110015,1734022252665,-500.0,0.00021917,2]
[345110016,1734022252675,-500.0,0.00021917,2]
[345110017,1734022252684,-500.0,0.00021917,2]
[345110018,1734022252695,-860.5,0.00021917,2]
[345110019,1734022252707,-522.85082618,0.00021917,2]
[345110020,1734022252717,-602.88048232,0.00021917,2]
[345110021,1734022252726,-500.0,0.00021917,2]
[345110022,1734022252737,-555.05,0.00021917,2]
[345110023,1734022252746,-500.0,0.00021917,2]
[345110024,1734022252756,-500.0,0.00021917,2]
[345110025,1734022252766,-500.0,0.00021917,2]
[345110026,1734022252777,-500.0,0.00021917,2]
[345110027,1734022252786,-842.12,0.00021917,2]
[345110028,1734022252795,-886.16,0.00021917,2]
[345110029,1734022252805,-500.0,0.00021917,2]
[345110030,1734022252815,-428.55340994,0.00021917,2]
[345110031,1734022252824,-584.31,0.00021917,2]
[345110032,1734022252833,-633.15,0.00021917,2]
[345110033,1734022252842,-500.0,0.00021917,2]
[345110034,1734022252851,-500.0,0.00021917,2]
[345110035,1734022252861,-1844.4,0.00021917,2]
[345110036,1734022252871,-500.0,0.00021917,2]
[345110037,1734022252880,-500.0,0.00021917,2]
[345110038,1734022252890,-382.98478983,0.00021917,2]
[345110039,1734022252901,-809.03,0.00021917,2]
[345110040,1734022252910,-879.44,0.00021917,2]
[345110041,1734022252919,-844.36,0.00021917,2]
[345110042,1734022252929,-910.32,0.00021917,2]
[345110043,1734022252938,-500.0,0.00021917,2]
[345110044,1734022252948,-1231.86,0.00021917,2]
[345110045,1734022252957,-1231.86,0.00021917,2]
[345110046,1734022252967,-1231.86,0.00021917,2]
[345110047,1734022252976,-1231.86,0.00021917,2]
[345110048,1734022252986,-1231.86,0.00021917,2]
[345110049,1734022252995,-1231.86,0.00021917,2]
[345110050,1734022253005,-1231.86,0.00021917,2]
[345110051,1734022253015,-1231.86,0.00021917,2]
[345110052,1734022253024,-500.0,0.00021917,2]
[345110053,1734022253034,-606.0,0.00021925,2]
[345110054,1734022253043,-785.78453594,0.00021925,2]
[345110055,1734022253052,-1231.86,0.00021968,2]
[345110056,1734022253062,-887.97,0.00021969,2]
[345110057,1734022253071,-336.24394845,0.00021969,2]
[345110058,1734022253080,-508.62,0.00021969,2]
[345110059,1734022253090,-500.0,0.00021969,2]
[345110060,1734022253099,-692.05,0.00021969,2]
[345110061,1734022253108,-500.0,0.00021969,2]
[345110062,1734022253118,-722.51,0.00021969,2]
[345110063,1734022253127,-500.0,0.00021969,2]
[345110064,1734022253136,-698.19,0.00021969,2]
[345110065,1734022253148,-596.29006562,0.00021969,2]
[345110066,1734022253157,-2733.56,0.00021969,2]
[345110067,1734022253166,-1629.13,0.00021969,2]
[345110068,1734022253175,-423.43583696,0.00021969,2]
[345110069,1734022253185,-500.0,0.00021969,2]
[345110070,1734022253195,-500.0,0.00021969,2]
[345110071,1734022253204,-507.49907113,0.00021969,2]
[345110072,1734022253214,-578.64,0.00021969,2]
[345110073,1734022253223,-500.0,0.00021969,2]
[345110074,1734022253232,-649.96,0.00021969,2]
[345110075,1734022253242,-1232.20944006,0.00022065,2]
[345110076,1734022253252,-606.0,0.00022145,2]
[345110077,1734022253261,-500.0,0.00022191,2]
[345110078,1734022253270,-634.92700919,0.00022191,2]
[345110079,1734022253279,-500.0,0.00022191,2]
[345110080,1734022253289,-1146.74,0.00022191,2]
[345110081,1734022253298,-500.0,0.00022191,2]
[345110082,1734022253307,-782.13,0.00022191,2]
[345110083,1734022253316,-500.53,0.00022191,2]
[345110084,1734022253325,-1673.74,0.00022191,2]
[345110085,1734022253334,-500.0,0.00022191,2]
[345110086,1734022253344,-610.81,0.00022191,2]
[345110087,1734022253354,-500.0,0.00022191,2]
[345110088,1734022253363,-500.0,0.00022191,2]
[345110089,1734022253373,-500.0,0.00022191,2]
[345110090,1734022253383,-1221.99,0.00022191,2]
[345110091,1734022253392,-565.6,0.00022191,2]
[345110092,1734022253404,-500.0,0.00022191,2]
[345110093,1734022253413,-858.22,0.00022191,2]
[345110094,1734022253422,-1890.78,0.00022191,2]
[345110095,1734022253431,-500.0,0.00022191,2]
[345110096,1734022253441,-1315.92,0.00022191,2]
[345110097,1734022253450,-500.0,0.00022191,2]
[345110098,1734022253459,-500.0,0.00022191,2]
[345110099,1734022253468,-1416.4,0.00022191,2]
[345110100,1734022253478,-500.0,0.00022191,2]
[345110101,1734022253487,-500.0,0.00022191,2]
[345110102,1734022253496,-500.0,0.00022191,2]
[345110103,1734022253505,-860.5,0.00022191,2]
[345110104,1734022253514,-320.20571193,0.00022191,2]
[345110105,1734022253523,-555.05,0.00022191,2]
[345110106,1734022253532,-500.0,0.00022191,2]
[345110107,1734022253542,-500.0,0.00022191,2]
[345110108,1734022253551,-500.0,0.00022191,2]
[345110109,1734022253560,-500.0,0.00022191,2]
[345110110,1734022253569,-842.12,0.00022191,2]
[345110111,1734022253579,-886.16,0.00022191,2]
[345110112,1734022253588,-500.0,0.00022191,2]
[345110113,1734022253598,-584.31,0.00022191,2]
[345110114,1734022253607,-500.0,0.00022191,2]
[345110115,1734022253616,-633.15,0.00022191,2]
[345110116,1734022253625,-500.0,0.00022191,2]
[345110117,1734022253635,-1844.4,0.00022191,2]
[345110118,1734022253644,-809.03,0.00022191,2]
[345110119,1734022253655,-879.44,0.00022191,2]
[345110120,1734022253664,-844.36,0.00022191,2]
[345110121,1734022253675,-910.32,0.00022191,2]
[345110122,1734022253684,-500.0,0.00022191,2]
[345110123,1734022253694,-500.0,0.00022191,2]
[345110124,1734022253709,-1231.86,0.00022242,2]
[345110125,1734022253719,-887.97,0.00022243,2]
[345110126,1734022253728,-508.62,0.00022243,2]
[345110127,1734022253739,-500.0,0.00022243,2]
[345110128,1734022253748,-692.05,0.00022243,2]
[345110129,1734022253758,-500.0,0.00022243,2]
[345110130,1734022253767,-722.51,0.00022243,2]
[345110131,1734022253777,-500.0,0.00022243,2]
[345110132,1734022253787,-698.19,0.00022243,2]
[345110133,1734022253796,-2733.56,0.00022243,2]
[345110134,1734022253806,-1629.13,0.00022243,2]
[345110135,1734022253815,-500.0,0.00022243,2]
[345110136,1734022253824,-465.92971699,0.00022243,2]
[345110137,1734022253834,-578.64,0.00022243,2]
[345110138,1734022253843,-500.0,0.00022243,2]
[345110139,1734022253852,-649.96,0.00022243,2]
[345110140,1734022253861,-977.14,0.00022288,2]
[345110141,1734022253870,-19689.30995041,0.00022303,2]
[345110142,1734022253905,-13740.03034918,0.00022303,2]
[345110143,1734022253915,-606.0,0.00022364,2]
[345110144,1734022253924,-500.0,0.00022465,2]
[345110145,1734022253934,-500.0,0.00022465,2]
[345110146,1734022253945,-1146.74,0.00022465,2]
[345110147,1734022253955,-500.0,0.00022465,2]
[345110148,1734022253965,-782.13,0.00022465,2]
[345110149,1734022253974,-500.53,0.00022465,2]
[345110150,1734022253983,-1673.74,0.00022465,2]
[345110151,1734022253994,-500.0,0.00022465,2]
[345110152,1734022254003,-610.81,0.00022465,2]
[345110153,1734022254013,-500.0,0.00022465,2]
[345110154,1734022254021,-500.0,0.00022465,2]
[345110155,1734022254031,-500.0,0.00022465,2]
[345110156,1734022254040,-1221.99,0.00022465,2]
[345110157,1734022254049,-565.6,0.00022465,2]
[345110158,1734022254059,-500.0,0.00022465,2]
[345110159,1734022254068,-858.22,0.00022465,2]
[345110160,1734022254077,-1890.78,0.00022465,2]
[345110161,1734022254086,-500.0,0.00022465,2]
[345110162,1734022254095,-1315.92,0.00022465,2]
[345110163,1734022254105,-500.0,0.00022465,2]
[345110164,1734022254114,-500.0,0.00022465,2]
[345110165,1734022254123,-1416.4,0.00022465,2]
[345110166,1734022254133,-500.0,0.00022465,2]
[345110167,1734022254143,-500.0,0.00022465,2]
[345110168,1734022254154,-500.0,0.00022465,2]
[345110169,1734022254164,-860.5,0.00022465,2]
[345110170,1734022254173,-555.05,0.00022465,2]
[345110171,1734022254183,-500.0,0.00022465,2]
[345110172,1734022254194,-500.0,0.00022465,2]
[345110173,1734022254203,-500.0,0.00022465,2]
[345110174,1734022254213,-500.0,0.00022465,2]
[345110175,1734022254222,-842.12,0.00022465,2]
[345110176,1734022254232,-886.16,0.00022465,2]
[345110177,1734022254241,-500.0,0.00022465,2]
[345110178,1734022254250,-584.31,0.00022465,2]
[345110179,1734022254259,-500.0,0.00022465,2]
[345110180,1734022254268,-633.15,0.00022465,2]
[345110181,1734022254278,-340.09191671,0.00022465,2]
[345110182,1734022254329,-159.90808329,0.00022465,2]
[345110183,1734022254338,-1844.4,0.00022465,2]
[345110184,1734022254347,-809.03,0.00022465,2]
[345110185,1734022254357,-879.44,0.00022465,2]
[345110186,1734022254366,-844.36,0.00022465,2]
[345110187,1734022254375,-910.32,0.00022465,2]
[345110188,1734022254383,-500.0,0.00022465,2]
[345110189,1734022254392,-500.0,0.00022465,2]
[345110190,1734022254405,-251.81157468,0.00022467,2]
[345110191,1734022254414,-2272.17997385,0.00022473,2]
[345110192,1734022254423,-92799.3858,0.00022483,2]
[345110193,1734022254433,-1232.20944006,0.00022515,2]
[345110194,1734022254442,-1231.86,0.00022516,2]
[345110195,1734022254451,-887.97,0.00022517,2]
[345110196,1734022254460,-508.62,0.00022517,2]
[345110197,1734022254469,-537.58358904,0.00022517,2]
[345110198,1734022254479,-692.05,0.00022517,2]
[345110199,1734022254488,-500.0,0.00022517,2]
[345110200,1734022254498,-722.51,0.00022517,2]
[345110201,1734022254508,-500.0,0.00022517,2]
[345110202,1734022254517,-698.19,0.00022517,2]
[345110203,1734022254527,-2733.56,0.00022517,2]
[345110204,1734022254536,-1629.13,0.00022517,2]
[345110205,1734022254545,-500.0,0.00022517,2]
[345110206,1734022254556,-578.64,0.00022517,2]
[345110207,1734022254566,-500.0,0.00022517,2]
[345110208,1734022254576,-649.96,0.00022517,2]
[345110209,1734022254585,-1000.0,0.00022555,2]
[345110210,1734022254595,-86571.86602394,0.00022557,2]
[345110211,1734022254767,-560.49294706,0.00022557,2]
[345110212,1734022254875,-1349.76020427,0.00022557,2]
[345110213,1734022254887,-4783.6,0.00022557,2]
[345110214,1734022254900,-3378.07657561,0.00022557,2]
[345110215,1734022254918,-7117.484186,0.00022557,2]
[345110216,1734022254930,-26882.135436,0.00022557,2]
[345110217,1734022254941,-355.64622195,0.00022557,2]
[345110218,1734022255205,-11761.50853139,0.00022557,2]
[345110219,1734022255216,-6722.84921795,0.00022557,2]
[345110220,1734022255237,-1265.4691948,0.00022557,2]
[345110221,1734022255246,-2000.0,0.00022567,120]
[345110222,1734022255256,-606.0,0.00022583,2]
[345110223,1734022255265,-500.0,0.00022739,2]
[345110224,1734022255274,-1146.74,0.00022739,2]
[345110225,1734022255283,-500.0,0.00022739,2]
[345110226,1734022255292,-782.13,0.00022739,2]
[345110227,1734022255301,-500.53,0.00022739,2]
[345110228,1734022255311,-1673.74,0.00022739,2]
[345110229,1734022255320,-500.0,0.00022739,2]
[345110230,1734022255329,-610.81,0.00022739,2]
[345110231,1734022255338,-500.0,0.00022739,2]
[345110232,1734022255347,-500.0,0.00022739,2]
[345110233,1734022255356,-500.0,0.00022739,2]
[345110234,1734022255365,-1221.99,0.00022739,2]
[345110235,1734022255375,-565.6,0.00022739,2]
[345110236,1734022255384,-500.0,0.00022739,2]
[345110237,1734022255393,-858.22,0.00022739,2]
[345110238,1734022255404,-1890.78,0.00022739,2]
[345110239,1734022255413,-500.0,0.00022739,2]
[345110240,1734022255423,-1315.92,0.00022739,2]
[345110241,1734022255431,-347.01583018,0.00022739,2]
[345110242,1734022255440,-500.0,0.00022739,2]
[345110243,1734022255449,-1416.4,0.00022739,2]
[345110244,1734022255458,-500.0,0.00022739,2]
[345110245,1734022255467,-500.0,0.00022739,2]
[345110246,1734022255477,-500.0,0.00022739,2]
[345110247,1734022255486,-860.5,0.00022739,2]
[345110248,1734022255495,-555.05,0.00022739,2]
[345110249,1734022255505,-500.0,0.00022739,2]
[345110250,1734022255514,-500.0,0.00022739,2]
[345110251,1734022255524,-500.0,0.00022739,2]
[345110252,1734022255533,-500.0,0.00022739,2]
[345110253,1734022255542,-842.12,0.00022739,2]
[345110254,1734022255551,-886.16,0.00022739,2]
[345110255,1734022255561,-263.45,0.00022739,2]
[345110256,1734022255570,-584.31,0.00022739,2]
[345110257,1734022255579,-500.0,0.00022739,2]
[345110258,1734022255590,-633.15,0.00022739,2]
[345110259,1734022255601,-1844.4,0.00022739,2]
[345110260,1734022255610,-809.03,0.00022739,2]
[345110261,1734022255619,-879.44,0.00022739,2]
[345110262,1734022255631,-844.36,0.00022739,2]
[345110263,1734022255640,-910.32,0.00022739,2]
[345110264,1734022255652,-500.0,0.00022739,2]
[345110265,1734022255661,-500.0,0.00022739,2]
[345110266,1734022255671,-969.23,0.00022761,2]
[345110267,1734022255681,-1231.86,0.0002279,2]
[345110268,1734022255691,-887.97,0.00022791,2]
[345110269,1734022255702,-508.62,0.00022791,2]
[345110270,1734022255712,-692.05,0.00022791,2]